bitfinex-derivatives/quotes_BTCF0:USTF0_20260111
["timestamp","ask_amount","ask_price","bid_price","bid_amount"]
[1768173728942,0.011016,90902.0,90886.0,0.00954346]
[1768173730037,0.09364,90903.0,90878.0,0.00987355]
[1768173730242,0.011016,90898.0,90880.0,0.00987355]
[1768173732040,0.011016,90900.0,90886.0,0.00987355]
[1768173732241,0.09364,90903.0,90886.0,0.00987355]
[1768173732547,0.011017,90895.0,90886.0,0.00987355]
[1768173733639,0.011016,90898.0,90886.0,0.00987355]
[1768173734040,0.011017,90896.0,90886.0,0.00987355]
[1768173735349,0.011016,90902.0,90886.0,0.00987355]
[1768173735542,0.09364,90903.0,90886.0,0.00987355]
[1768173735742,0.011016,90900.0,90886.0,0.00987355]
[1768173736042,0.011017,90896.0,90886.0,0.00987355]
[1768173736344,0.011016,90898.0,90875.0,0.011019]
[1768173736534,0.09364,90903.0,90872.0,0.00987355]
[1768173736732,0.011017,90892.0,90876.0,0.02089255]
[1768173736946,0.011017,90895.0,90879.0,0.00987355]
[1768173738642,0.011018,90887.0,90869.0,0.00987355]
[1768173738846,0.011018,90885.0,90869.0,0.00987355]
[1768173739644,0.011018,90888.0,90870.0,0.02089355]
[1768173739849,0.011018,90886.0,90870.0,0.02089355]
[1768173740350,0.011018,90886.0,90871.0,0.00987355]
[1768173741336,0.011017,90889.0,90871.0,0.00987355]
[1768173741646,0.011017,90889.0,90872.0,0.011019]
[1768173742042,0.011018,90887.0,90871.0,0.00987355]
[1768173742448,0.00550028,90905.0,90879.0,0.011018]
[1768173742449,0.09364,90889.0,90879.0,0.011018]
[1768173742644,0.09364,90889.0,90873.0,0.011019]
[1768173742847,0.104657,90891.0,90874.0,0.00987355]
[1768173743643,0.011017,90889.0,90874.0,0.00987355]
[1768173744753,0.09364,90891.0,90875.0,0.011019]
[1768173744953,0.011019,90878.0,90863.0,0.09364]
[1768173745142,0.011019,90878.0,90854.0,0.00987355]
[1768173745343,0.011019,90876.0,90859.0,0.011021]
[1768173745645,0.01102,90870.0,90854.0,0.00987355]
[1768173745954,0.09364,90879.0,90854.0,0.02089555]
[1768173746157,0.104659,90879.0,90848.0,0.011022]
[1768173746450,0.104659,90879.0,90847.0,0.00987355]
[1768173746451,0.01102,90868.0,90847.0,0.00987355]
[1768173746851,0.01102,90868.0,90848.0,0.011022]
[1768173747447,0.09364,90867.0,90851.0,0.011022]
[1768173747752,0.09364,90867.0,90851.0,0.00987355]
[1768173747947,0.00018083,90875.0,90855.0,0.011021]
[1768173748255,0.011019,90873.0,90852.0,0.00987355]
[1768173749942,0.011018,90881.0,90860.0,0.00987355]
[1768173750342,0.17475043,90900.0,90860.0,0.00987355]
[1768173750343,0.011019,90879.0,90860.0,0.00987355]
[1768173752149,0.011018,90882.0,90863.0,0.02089355]
[1768173752352,0.09364,90881.0,90866.0,0.00987355]
[1768173754151,0.011018,90880.0,90861.0,0.011021]
[1768173754452,0.00329224,90880.0,90858.0,0.011021]
[1768173755156,0.00087246,90880.0,90858.0,0.02015897]
[1768173755647,0.011019,90874.0,90858.0,0.00913797]
[1768173755853,0.00087246,90880.0,90858.0,0.00913797]
[1768173756055,0.011019,90877.0,90858.0,0.00913797]
[1768173756242,0.011019,90875.0,90858.0,0.00913797]
[1768173756643,0.00087246,90880.0,90858.0,0.00913797]
[1768173756644,0.01102,90871.0,90858.0,0.00913797]
[1768173756960,0.01102,90869.0,90858.0,0.00913797]
[1768173757254,0.01102,90868.0,90850.0,0.02015997]
[1768173757550,0.01102,90868.0,90851.0,0.00913797]
[1768173758146,0.01102,90868.0,90852.0,0.119198]
[1768173758548,0.01102,90871.0,90854.0,0.011021]
[1768173758749,0.01102,90871.0,90855.0,0.00913797]
[1768173758958,0.00275409,90876.0,90856.0,0.02015897]
[1768173758959,0.011019,90874.0,90856.0,0.02015897]
[1768173759158,0.011019,90872.0,90856.0,0.02015897]
[1768173759353,0.00275409,90876.0,90856.0,0.00913797]
[1768173759652,0.00276965,90874.0,90849.0,0.00913797]
[1768173760253,0.01378865,90872.0,90851.0,0.00913797]
[1768173760457,0.01102,90864.0,90851.0,0.00913797]
[1768173761156,0.01102,90867.0,90851.0,0.00913797]
[1768173761455,0.0026768,90848.0,90843.0,8.6e-07]
[1768173761646,0.011022,90849.0,90832.0,0.00913797]
[1768173761849,0.09364,90851.0,90832.0,0.00913797]
[1768173762152,0.011022,90850.0,90832.0,0.02839887]
[1768173762757,0.011022,90848.0,90832.0,0.02839887]
[1768173763056,9.579e-05,90849.0,90832.0,0.0192609]
[1768173763355,9.579e-05,90849.0,90795.0,0.13860707]
[1768173763356,0.003,90834.0,90798.0,0.00242297]
[1768173763559,0.011023,90839.0,90817.0,0.011026]
[1768173763747,0.011024,90837.0,90813.0,0.011026]
[1768173764053,0.011024,90835.0,90812.0,0.011027]
[1768173765160,0.09364,90836.0,90815.0,0.00913797]
[1768173766451,0.09364,90836.0,90816.0,0.00913797]
[1768173766958,0.00143826,90832.0,90811.0,0.01949277]
[1768173767256,0.00143826,90832.0,90810.0,0.00913797]
[1768173767461,0.09368,90831.0,90813.0,0.00913797]
[1768173767660,0.011023,90841.0,90817.0,0.00913797]
[1768173767859,0.09368,90840.0,90818.0,0.00913797]
[1768173768360,0.09511826,90840.0,90818.0,0.00913797]
[1768173768555,0.10614126,90840.0,90818.0,0.00913797]
[1768173768962,0.011023,90844.0,90820.0,0.00913797]
[1768173769165,0.09368,90843.0,90826.0,0.00913797]
[1768173770262,0.011023,90842.0,90826.0,0.00913797]
[1768173770866,0.09368,90843.0,90811.0,0.01909005]
[1768173771049,0.09368,90843.0,90720.0,0.17475043]
[1768173771050,0.011026,90821.0,90798.0,0.0993928]
[1768173771250,0.09376561,90820.0,90798.0,0.0993928]
[1768173771563,0.011026,90816.0,90798.0,0.02143827]
[1768173771962,0.09368,90819.0,90798.0,0.02143827]
[1768173772162,0.09368,90819.0,90802.0,0.011028]
[1768173772365,0.09368,90819.0,90798.0,0.03246627]
[1768173772754,0.09368,90819.0,90801.0,0.011028]
[1768173773154,0.011026,90818.0,90799.0,0.00913797]
[1768173773662,0.09368,90819.0,90799.0,0.00913797]
[1768173774365,0.104706,90819.0,90799.0,0.00913797]
[1768173775664,0.011026,90816.0,90799.0,0.00913797]
[1768173776462,0.011027,90811.0,90799.0,9.7e-07]
[1768173776771,0.011027,90811.0,90798.0,0.02189686]
[1768173776959,0.00910616,90817.0,90798.0,0.02189686]
[1768173777159,0.09368,90819.0,90747.0,0.19378207]
[1768173777160,0.011028,90799.0,90777.0,0.09696983]
[1768173777364,0.104708,90803.0,90784.0,0.01103]
[1768173777564,0.104708,90803.0,90777.0,0.11659324]
[1768173777565,0.09368,90803.0,90789.0,0.011029]
[1768173778870,0.09368,90803.0,90785.0,0.02016797]
[1768173779368,0.09368,90803.0,90790.0,0.011029]
[1768173779566,0.09368,90803.0,90789.0,0.00913797]
[1768173780169,0.09368,90803.0,90792.0,0.011029]
[1768173780357,0.09368,90803.0,90789.0,0.02016697]
[1768173780563,0.09368,90802.0,90793.0,0.011029]
[1768173780760,0.09368,90802.0,90790.0,0.011029]
[1768173781362,0.09368,90802.0,90787.0,0.01103]
[1768173781568,0.09368,90802.0,90782.0,0.00913797]
[1768173781763,9.359e-05,90801.0,90782.0,0.00913797]
[1768173782371,9.359e-05,90801.0,90785.0,0.01103]
[1768173782765,9.359e-05,90801.0,90789.0,0.011029]
[1768173783170,0.09372,90800.0,90789.0,0.011029]
[1768173784574,0.09372,90800.0,90786.0,0.01103]
[1768173784965,0.09372,90800.0,90782.0,0.00913797]
[1768173784966,0.09372,90800.0,90788.0,0.01103]
[1768173785366,0.09372,90800.0,90789.0,0.011029]
[1768173785960,9.359e-05,90801.0,90790.0,0.10742093]
[1768173786167,0.011027,90812.0,90794.0,0.011029]
[1768173786367,0.09372,90811.0,90794.0,0.011029]
[1768173786878,0.09372,90811.0,90796.0,0.011029]
[1768173787078,0.09372,90811.0,90793.0,0.00999254]
[1768173787272,0.0001168,90810.0,90793.0,0.00999254]
[1768173787670,0.0001168,90810.0,90800.0,0.011028]
[1768173787881,0.0001168,90810.0,90793.0,0.00999254]
[1768173788080,8e-07,90810.0,90807.0,0.011027]
[1768173788283,0.00970861,90825.0,90807.0,0.011027]
[1768173788486,0.10342861,90824.0,90807.0,0.011027]
[1768173788783,0.00098579,90822.0,90807.0,0.011027]
[1768173789086,0.011026,90819.0,90801.0,0.011028]
[1768173789288,0.00106183,90818.0,90803.0,0.011028]
[1768173789580,0.00106183,90818.0,90798.0,0.00999254]
[1768173789976,0.00106183,90818.0,90805.0,0.011028]
[1768173790182,0.00106183,90818.0,90802.0,0.011028]
[1768173790792,0.00106183,90818.0,90804.0,0.011028]
[1768173790991,0.00106183,90818.0,90806.0,0.011027]
[1768173791186,7.604e-05,90818.0,90808.0,0.011027]
[1768173791490,0.09372,90817.0,90803.0,0.09403751]
[1768173791683,7.604e-05,90818.0,90804.0,0.00968444]
[1768173791885,0.09372,90816.0,90809.0,0.011027]
[1768173792485,7.604e-05,90818.0,90816.0,0.011026]
[1768173792694,3.332e-05,90818.0,90816.0,0.011026]
[1768173792994,3.332e-05,90818.0,90813.0,0.011026]
[1768173793382,3.332e-05,90818.0,90817.0,0.011026]
[1768173793581,0.00242217,90828.0,90817.0,0.011026]
[1768173793582,1.7e-07,90828.0,90823.0,0.011025]
[1768173793887,1.7e-07,90828.0,90822.0,0.011025]
[1768173794193,1.7e-07,90828.0,90824.0,0.011025]
[1768173794883,1.7e-07,90828.0,90818.0,0.00968444]
[1768173794884,1.7e-07,90828.0,90821.0,0.011025]
[1768173795295,1.7e-07,90828.0,90823.0,0.011025]
[1768173795787,1.7e-07,90828.0,90825.0,0.011025]
[1768173795993,1.7e-07,90828.0,90822.0,0.011025]
[1768173796293,1.7e-07,90828.0,90824.0,0.011025]
[1768173796894,1.7e-07,90828.0,90826.0,0.011025]
[1768173797497,1.7e-07,90828.0,90826.0,0.02070944]
[1768173797790,1.7e-07,90828.0,90823.0,0.02070944]
[1768173798094,1.7e-07,90828.0,90825.0,0.02070944]
[1768173798294,1.7e-07,90828.0,90827.0,0.02070944]
[1768173799003,1.7e-07,90828.0,90827.0,0.00968444]
[1768173801894,1.7e-07,90828.0,90824.0,0.00968444]
[1768173802196,1.7e-07,90828.0,90825.0,0.02070944]
[1768173802998,1.7e-07,90828.0,90825.0,0.00968444]
[1768173804095,1.7e-07,90828.0,90826.0,0.011025]
[1768173804606,1.7e-07,90828.0,90826.0,0.02070944]
[1768173804900,1.7e-07,90828.0,90827.0,0.00968444]
[1768173805099,0.011022,90849.0,90832.0,0.011024]
[1768173805498,0.09368,90848.0,90832.0,0.011024]
[1768173806398,0.09368,90848.0,90829.0,0.00968444]
[1768173806606,0.00064937,90847.0,90825.0,0.011025]
[1768173806908,0.011023,90843.0,90825.0,0.011025]
[1768173807516,0.011023,90840.0,90828.0,0.00968444]
[1768173808008,0.011023,90843.0,90828.0,0.00968444]
[1768173808711,0.011023,90843.0,90828.0,0.02070944]
[1768173809010,0.011023,90846.0,90831.0,0.00968444]
[1768173809193,0.09368,90848.0,90833.0,0.011024]
[1768173809397,0.011022,90849.0,90833.0,0.011024]
[1768173809593,0.09368,90848.0,90834.0,0.011024]
[1768173810706,0.02012294,90847.0,90831.0,0.011024]
[1768173811009,0.09368,90848.0,90835.0,0.011024]
[1768173812110,0.00909994,90867.0,90843.0,0.00968444]
[1768173812303,0.011021,90859.0,90843.0,0.00968444]
[1768173812696,0.91476,90877.0,90843.0,0.00968444]
[1768173812910,0.12183924,90876.0,90843.0,0.02883541]
[1768173813112,0.011021,90859.0,90843.0,0.02883541]
[1768173813509,0.011021,90863.0,90850.0,0.011022]
[1768173813709,0.09368,90864.0,90850.0,0.00968444]
[1768173813911,0.011019,90878.0,90850.0,0.00968444]
[1768173813912,0.011021,90862.0,90850.0,0.00968444]
[1768173814316,0.09368,90872.0,90850.0,0.00968444]
[1768173815015,0.09765654,90872.0,90850.0,0.00968444]
[1768173815516,0.011021,90860.0,90845.0,0.011023]
[1768173815810,0.011021,90860.0,90845.0,0.02007839]
[1768173816211,0.011021,90860.0,90846.0,0.00905539]
[1768173817405,0.00394052,90869.0,90846.0,0.00905539]
[1768173818013,0.011021,90860.0,90846.0,0.00905539]
[1768173818213,0.00394052,90869.0,90846.0,0.00905539]
[1768173818407,0.00394052,90869.0,90846.0,0.02007839]
[1768173819011,0.011021,90856.0,90847.0,0.00905539]
[1768173819319,0.01494866,90866.0,90844.0,0.00905539]
[1768173819710,0.011021,90859.0,90844.0,0.00905539]
[1768173820212,0.011021,90856.0,90844.0,0.00905539]
[1768173820811,0.011021,90862.0,90846.0,0.00905539]
[1768173821120,0.011021,90860.0,90849.0,0.00905539]
[1768173821315,0.011021,90863.0,90849.0,0.00905539]
[1768173822415,0.00394017,90870.0,90849.0,0.00905539]
[1768173822719,0.011021,90858.0,90844.0,0.00905539]
[1768173824011,0.011021,90856.0,90844.0,0.00905539]
[1768173824212,0.011022,90855.0,90845.0,0.00905539]
[1768173825821,0.01102,90866.0,90843.0,0.01915097]
[1768173825822,0.01102,90871.0,90848.0,0.00905539]
[1768173826211,0.01102,90867.0,90848.0,0.00905539]
[1768173826411,0.011022,90854.0,90848.0,0.00905539]
[1768173827122,0.011021,90859.0,90848.0,0.00905539]
[1768173827322,0.011021,90860.0,90848.0,0.00905539]
[1768173829720,0.00371123,90882.0,90850.0,0.09804314]
[1768173829922,0.011019,90873.0,90860.0,0.00905539]
[1768173830425,0.011019,90876.0,90862.0,0.00905539]
[1768173830724,0.011019,90880.0,90863.0,0.01102]
[1768173830915,0.011018,90883.0,90866.0,0.01102]
[1768173831114,0.011018,90883.0,90866.0,0.02007539]
[1768173831314,0.011018,90883.0,90866.0,0.00905539]
[1768173831610,0.011019,90880.0,90866.0,0.00905539]
[1768173831816,0.011018,90883.0,90871.0,0.00905539]
[1768173832015,0.011019,90879.0,90871.0,0.00905539]
[1768173833017,0.09610057,90888.0,90871.0,0.00905539]
[1768173834326,0.011019,90878.0,90871.0,0.00905539]
[1768173835125,0.011019,90876.0,90871.0,0.00905539]
[1768173836225,0.011019,90879.0,90871.0,0.00905539]
[1768173837824,0.09610057,90888.0,90871.0,0.00905539]
[1768173838320,0.011018,90881.0,90871.0,0.00905539]
[1768173838924,0.011018,90881.0,90872.0,0.00905539]
[1768173839328,0.00967218,90887.0,90864.0,0.09368]
[1768173839623,0.011019,90874.0,90864.0,0.09368]
[1768173839826,0.011019,90874.0,90864.0,0.19172314]
[1768173840131,0.011019,90874.0,90865.0,0.09804314]
[1768173840533,0.011018,90887.0,90865.0,0.09804314]
[1768173841032,0.011019,90876.0,90865.0,0.09804314]
[1768173841429,0.011019,90872.0,90865.0,0.10709853]
[1768173841626,0.011019,90872.0,90864.0,0.09368]
[1768173841627,0.011019,90876.0,90853.0,0.09804314]
[1768173841832,0.01102,90867.0,90860.0,0.09364]
[1768173842027,0.01102,90865.0,90860.0,0.09364]
[1768173842427,0.011018,90883.0,90860.0,0.09364]
[1768173842428,0.01102,90868.0,90860.0,0.09364]
[1768173842636,0.011019,90872.0,90860.0,0.09364]
[1768173842820,0.01102,90867.0,90860.0,0.09364]
[1768173843225,0.01102,90867.0,90858.0,0.09364]
[1768173845929,0.01102,90869.0,90858.0,0.09364]
[1768173846435,0.011019,90872.0,90858.0,0.09364]
[1768173846734,0.15528329,90870.0,90849.0,0.10007904]
[1768173846933,0.15528329,90870.0,90850.0,0.09364]
[1768173847135,0.011021,90860.0,90850.0,0.09364]
[1768173848522,0.011021,90856.0,90849.0,0.09364]
[1768173848927,0.011021,90859.0,90849.0,0.09364]
[1768173849131,0.011021,90862.0,90849.0,0.09364]
[1768173849335,0.00979504,90868.0,90849.0,0.09364]
[1768173849540,0.011021,90861.0,90849.0,0.09364]
[1768173850942,0.00972078,90879.0,90854.0,0.09736542]
[1768173851241,0.01102,90871.0,90855.0,0.02080201]
[1768173851441,0.01102,90871.0,90855.0,0.011021]
[1768173852239,0.00972078,90875.0,90855.0,0.011021]
[1768173852240,0.011019,90874.0,90855.0,0.011021]
[1768173852841,0.011019,90872.0,90855.0,0.011021]
[1768173853038,0.011019,90872.0,90856.0,0.00978101]
[1768173853238,0.011019,90872.0,90856.0,0.10714643]
[1768173853841,0.011019,90872.0,90857.0,0.011021]
[1768173854042,0.011019,90873.0,90859.0,0.10714643]
[1768173854640,0.011019,90873.0,90859.0,0.00978101]
[1768173854836,0.011019,90873.0,90857.0,0.011021]
[1768173855846,0.01102,90871.0,90855.0,0.09736542]
[1768173856546,0.00972078,90878.0,90858.0,0.011021]
[1768173857546,0.011019,90873.0,90858.0,0.011021]
[1768173857947,0.011019,90873.0,90855.0,0.10838642]
[1768173858147,0.011019,90873.0,90855.0,0.11816743]
[1768173859449,0.15528329,90870.0,90851.0,0.09736542]
[1768173859746,0.15528329,90870.0,90851.0,0.10714643]
[1768173859945,0.01102,90866.0,90851.0,0.10714643]
[1768173860845,0.15528329,90870.0,90854.0,0.011022]
[1768173860846,0.01102,90867.0,90854.0,0.011022]
[1768173861038,0.01102,90867.0,90853.0,0.10714643]
[1768173863641,0.01102,90867.0,90859.0,0.09736542]
[1768173863848,0.16630329,90870.0,90859.0,0.10714643]
[1768173864047,0.01102,90868.0,90859.0,0.10714643]
[1768173864951,0.01102,90868.0,90855.0,0.09736542]
[1768173865139,0.01102,90868.0,90857.0,0.00978101]
[1768173865339,0.01102,90868.0,90857.0,0.10714643]
[1768173865749,0.01102,90866.0,90857.0,0.10714643]
[1768173866740,0.01102,90864.0,90857.0,0.10714643]
[1768173867257,0.01102,90867.0,90857.0,0.10714643]
[1768173868158,0.01102,90865.0,90857.0,0.10714643]
[1768173869867,0.01102,90863.0,90857.0,0.10714643]
[1768173870269,0.011021,90861.0,90858.0,1e-08]
[1768173870469,0.01102,90869.0,90857.0,4.2e-07]
[1768173870667,0.011021,90861.0,90849.0,0.104662]
[1768173872369,0.011021,90861.0,90850.0,0.00978101]
[1768173872563,0.25281118,90870.0,90851.0,0.09736542]
[1768173872767,0.011022,90853.0,90849.0,0.09364]
[1768173873064,0.011022,90853.0,90840.0,0.011023]
[1768173873065,0.011022,90851.0,90844.0,0.09736542]
[1768173873268,0.15528329,90861.0,90844.0,0.09736542]
[1768173873269,0.011022,90854.0,90844.0,0.09736542]
[1768173873461,0.15528329,90860.0,90844.0,0.09736542]
[1768173874262,0.011022,90852.0,90844.0,0.09736542]
[1768173875462,0.011022,90849.0,90843.0,0.01915097]
[1768173875771,0.011022,90848.0,90840.0,0.18908884]
[1768173875971,0.011022,90851.0,90840.0,0.18908884]
[1768173876171,0.011022,90851.0,90841.0,0.09544884]
[1768173876767,0.15528329,90851.0,90841.0,0.01843444]
[1768173876970,0.15528329,90851.0,90840.0,0.09364]
[1768173877169,0.011022,90851.0,90840.0,0.11270975]
[1768173879466,0.011022,90851.0,90840.0,0.20815859]
[1768173880266,0.011022,90849.0,90840.0,0.11270975]
[1768173880971,0.011022,90852.0,90840.0,0.11270975]
[1768173881165,0.011022,90852.0,90840.0,0.20815859]
[1768173883177,0.011022,90850.0,90840.0,0.20815859]
[1768173884769,0.011022,90850.0,90841.0,0.09544884]
[1768173885179,0.011022,90848.0,90841.0,0.09544884]
[1768173885580,0.011021,90855.0,90843.0,0.09544884]
[1768173886982,0.011022,90853.0,90843.0,0.09544884]
[1768173887381,0.011022,90848.0,90840.0,0.20815859]
[1768173887581,0.011023,90844.0,90831.0,0.09368]
[1768173887774,0.011023,90844.0,90832.0,0.09544884]
[1768173888300,0.011023,90844.0,90832.0,0.1133738]
[1768173889386,0.011023,90847.0,90832.0,0.1133738]
[1768173889570,0.011023,90845.0,90832.0,0.1133738]
[1768173889775,0.011022,90848.0,90832.0,0.1243978]
[1768173890184,0.011022,90848.0,90834.0,0.011024]
[1768173892879,0.011022,90848.0,90834.0,0.10647284]
[1768173895290,0.011023,90842.0,90834.0,0.09544884]
[1768173895588,0.011023,90839.0,90832.0,0.01792496]
[1768173895781,0.011023,90839.0,90827.0,0.10647384]
[1768173896089,0.08863858,90847.0,90826.0,0.01850117]
[1768173896090,0.011024,90836.0,90826.0,0.01850117]
[1768173896280,0.011024,90836.0,90824.0,0.10519592]
[1768173896585,0.011024,90834.0,90824.0,0.10519592]
[1768173896784,0.011024,90834.0,90824.0,0.12348304]
[1768173897082,0.011024,90834.0,90825.0,0.09544884]
[1768173897282,0.011024,90832.0,90825.0,0.09544884]
[1768173897681,0.09841258,90836.0,90819.0,8.3e-07]
[1768173897887,0.011025,90822.0,90819.0,8.3e-07]
[1768173898782,0.011025,90822.0,90808.0,0.09368]
[1768173899084,0.011025,90822.0,90808.0,0.10342708]
[1768173899282,0.011025,90825.0,90809.0,0.02077408]
[1768173899483,0.10824223,90830.0,90809.0,0.00974708]
[1768173899484,0.011025,90824.0,90809.0,0.00974708]
[1768173899680,9.788e-05,90823.0,90809.0,0.10519592]
[1768173900189,0.011025,90822.0,90809.0,0.10519592]
[1768173900687,9.788e-05,90823.0,90809.0,0.10519592]
[1768173900885,9.788e-05,90823.0,90810.0,0.00974708]
[1768173900886,0.011027,90813.0,90810.0,0.00974708]
[1768173901183,9.788e-05,90823.0,90798.0,0.00242297]
[1768173901184,0.011027,90812.0,90801.0,0.02807539]
[1768173901384,0.011026,90815.0,90801.0,0.02807539]
[1768173901586,0.011027,90813.0,90801.0,0.00974708]
[1768173901888,0.10824223,90821.0,90801.0,0.00974708]
[1768173901889,0.011026,90816.0,90801.0,0.00974708]
[1768173902089,0.011026,90819.0,90801.0,0.02077508]
[1768173902290,0.011026,90819.0,90802.0,0.00974708]
[1768173902484,0.011026,90817.0,90802.0,0.00974708]
[1768173902788,0.011026,90820.0,90803.0,0.02077508]
[1768173902988,0.011026,90818.0,90804.0,0.09544884]
[1768173904790,0.011026,90818.0,90808.0,0.8]
[1768173905191,0.011026,90816.0,90808.0,0.8]
[1768173905592,0.011026,90819.0,90808.0,0.8]
[1768173905994,0.011026,90816.0,90808.0,0.8]
[1768173906596,9.788e-05,90823.0,90808.0,0.215788]
[1768173906597,0.10416253,90823.0,90808.0,0.215788]
[1768173906794,0.011026,90814.0,90808.0,0.215788]
[1768173907389,9.788e-05,90823.0,90809.0,0.09738853]
[1768173907588,0.011026,90819.0,90811.0,0.09738853]
[1768173907796,0.011027,90814.0,90811.0,0.09738853]
[1768173907990,0.011027,90814.0,90808.0,0.215788]
[1768173908585,0.10406465,90821.0,90801.0,0.01789685]
[1768173908785,0.10406465,90821.0,90800.0,0.09368]
[1768173908991,0.011027,90808.0,90800.0,0.09368]
[1768173909196,0.011027,90812.0,90800.0,0.09368]
[1768173909596,0.011026,90815.0,90800.0,0.11234125]
[1768173909798,0.011027,90813.0,90800.0,0.12196003]
[1768173909986,0.011027,90813.0,90801.0,0.10537444]
[1768173910187,0.011027,90813.0,90803.0,0.09575566]
[1768173911889,0.011027,90813.0,90803.0,0.10537444]
[1768173913599,0.011027,90812.0,90803.0,0.10537444]
[1768173914191,0.011026,90815.0,90803.0,0.10537444]
[1768173917690,0.011026,90815.0,90805.0,0.09575566]
[1768173918093,9.788e-05,90823.0,90805.0,0.10678266]
[1768173918309,0.011026,90820.0,90808.0,0.10678266]
[1768173918803,9.788e-05,90823.0,90809.0,0.09575566]
[1768173918996,0.01112288,90823.0,90809.0,0.10678266]
[1768173919497,0.011026,90822.0,90809.0,0.10678266]
[1768173919894,9.788e-05,90823.0,90809.0,0.09575566]
[1768173920094,0.011026,90820.0,90809.0,0.09575566]
[1768173924005,0.011026,90819.0,90809.0,0.09575566]
[1768173924603,9.788e-05,90823.0,90809.0,0.09575566]
[1768173924604,0.011026,90818.0,90809.0,0.09575566]
[1768173925294,0.01112288,90823.0,90809.0,0.10537444]
[1768173925489,0.011028,90805.0,90800.0,0.01866125]
[1768173925696,0.011028,90805.0,90799.0,0.09372]
[1768173926209,0.011027,90807.0,90799.0,0.11181755]
[1768173927304,0.011028,90805.0,90799.0,0.11181755]
[1768173927506,0.011028,90805.0,90800.0,0.09575566]
[1768173928201,0.011027,90808.0,90800.0,0.09575566]
[1768173928393,0.011027,90806.0,90799.0,0.11181755]
[1768173928597,0.00923363,90812.0,90798.0,0.00242297]
[1768173929507,0.011028,90805.0,90798.0,0.00242297]
[1768173930008,0.00923363,90812.0,90798.0,0.00242297]
[1768173930009,0.011028,90804.0,90798.0,0.00242297]
[1768173930504,0.011028,90804.0,90798.0,0.02058526]
[1768173932398,0.011028,90804.0,90798.0,0.11634092]
[1768173933207,0.011028,90802.0,90798.0,0.02058526]
[1768173933594,0.011028,90805.0,90798.0,0.02058526]
[1768173934604,0.011028,90803.0,90798.0,0.02058526]
[1768173936107,0.011028,90801.0,90798.0,0.00242297]
[1768173936312,0.09712623,90814.0,90779.0,0.10262147]
[1768173936313,0.00967641,90798.0,90779.0,0.10262147]
[1768173936518,0.011029,90790.0,90783.0,0.09159047]
[1768173936706,0.00967641,90798.0,90782.0,0.09372]
[1768173937012,0.00967641,90798.0,90780.0,0.09159047]
[1768173937417,0.011029,90789.0,90780.0,0.09159047]
[1768173938414,0.0001139,90800.0,90781.0,0.00911007]
[1768173938605,0.011028,90799.0,90788.0,0.09159047]
[1768173941010,0.0001139,90800.0,90788.0,0.09159047]
[1768173941011,0.011029,90797.0,90788.0,0.09159047]
[1768173941217,0.0001139,90800.0,90788.0,0.09159047]
[1768173941401,0.011029,90795.0,90788.0,0.09159047]
[1768173942216,0.011029,90797.0,90788.0,0.09159047]
[1768173943209,0.011029,90795.0,90788.0,0.09159047]
[1768173945417,0.0001139,90800.0,90788.0,0.09159047]
[1768173947320,0.011029,90794.0,90788.0,0.09159047]
[1768173947616,0.0001139,90800.0,90788.0,0.09159047]
[1768173947810,0.09372,90807.0,90790.0,0.10070054]
[1768173948413,0.09372,90807.0,90792.0,0.09159047]
[1768173948813,0.011028,90802.0,90792.0,0.09159047]
[1768173949009,0.011028,90805.0,90792.0,0.09159047]
[1768173949214,0.011028,90802.0,90792.0,0.09159047]
[1768173950023,0.09372,90807.0,90792.0,0.09159047]
[1768173950024,0.09372,90807.0,90792.0,0.10070054]
[1768173952027,0.011028,90803.0,90794.0,0.10070054]
[1768173952217,0.011028,90801.0,90794.0,0.09159047]
[1768173952418,0.011028,90804.0,90794.0,0.09159047]
[1768173952622,0.011028,90798.0,90794.0,0.09159047]
[1768173952820,0.011028,90798.0,90794.0,0.10070054]
[1768173953525,0.011029,90797.0,90783.0,0.01103]
[1768173954527,0.011029,90795.0,90780.0,0.16657385]
[1768173954724,0.011029,90795.0,90782.0,0.01103]
[1768173954925,0.011028,90798.0,90784.0,0.01103]
[1768173955421,0.011028,90798.0,90787.0,0.02313496]
[1768173955617,0.011028,90798.0,90789.0,0.02313496]
[1768173959027,0.09825658,90795.0,90768.0,0.00242378]
[1768173959230,0.01103,90782.0,90768.0,0.01345578]
[1768173959422,0.01103,90785.0,90770.0,0.011032]
[1768173959730,0.01103,90786.0,90770.0,0.15554385]
[1768173959931,0.01103,90786.0,90771.0,0.011032]
[1768173960131,0.01103,90784.0,90771.0,0.011032]
[1768173960429,8.739e-05,90783.0,90771.0,0.011032]
[1768173960823,8.739e-05,90783.0,90773.0,0.011031]
[1768173961017,8.739e-05,90783.0,90770.0,0.16924373]
[1768173961222,8.739e-05,90783.0,90772.0,0.011032]
[1768173961423,0.00967641,90796.0,90775.0,0.00202318]
[1768173961816,0.01103,90787.0,90775.0,0.00202318]
[1768173962424,5.341e-05,90786.0,90775.0,0.00202318]
[1768173963333,5.341e-05,90786.0,90778.0,0.011031]
[1768173963538,5.341e-05,90786.0,90779.0,0.00206988]
[1768173963839,0.011028,90799.0,90786.0,0.01103]
[1768173964146,0.09372,90804.0,90783.0,0.00201647]
[1768173964341,0.00943263,90819.0,90795.0,0.00201647]
[1768173964548,0.09372,90821.0,90804.0,0.011028]
[1768173965341,0.011026,90820.0,90803.0,0.011028]
[1768173965654,0.011026,90820.0,90801.0,0.00203597]
[1768173966142,0.02045763,90827.0,90811.0,0.011027]
[1768173966444,0.01344717,90828.0,90810.0,0.16657085]
[1768173966632,0.01344717,90828.0,90807.0,0.09372]
[1768173966633,0.011025,90826.0,90807.0,0.10678297]
[1768173967238,0.0118548,90828.0,90807.0,0.10678297]
[1768173967239,0.00242217,90828.0,90816.0,0.011026]
[1768173967445,0.00242217,90828.0,90819.0,0.011026]
[1768173967744,0.09372,90844.0,90818.0,0.24926385]
[1768173967942,0.10315263,90844.0,90830.0,0.15554385]
[1768173968334,0.10315263,90844.0,90828.0,0.011025]
[1768173969238,0.011022,90849.0,90824.0,0.00203831]
[1768173969239,0.011022,90849.0,90830.0,0.16656785]
[1768173969744,0.09372,90851.0,90833.0,0.011024]
[1768173969950,0.10318374,90851.0,90833.0,0.011024]
[1768173971544,0.00946374,90850.0,90833.0,0.011024]
[1768173971849,0.09372,90851.0,90836.0,0.011024]